[Event "44th Chess Olympiad Open 2022"]
[Site "Chennai"]
[Date "2022.08.08"]
[Round "10.42"]
[White "Chukavin, Kirill"]
[Black "Blackburn, Jonathan L B"]
[Result "1/2-1/2"]
[WhiteElo "2418"]
[BlackElo "2176"]
[Annotator "RC"]
[PlyCount "114"]
[EventDate "2022.??.??"]
[TimeControl "60"]

1. e4 {[%emt 0:00:10]} e6 {[%emt 0:00:03]} 2. d4 {[%emt 0:00:09]} d5 {[%emt 0:
00:00]} 3. Nd2 {[%emt 0:00:10]} c5 {[%emt 0:00:06]} 4. Ngf3 {[%emt 0:00:22]}
Nc6 {[%emt 0:00:04]} 5. exd5 {[%emt 0:00:52]} exd5 {[%emt 0:00:05]} 6. Bb5 {
[%emt 0:00:09]} Qe7+ {[%emt 0:00:08]} 7. Be2 {[%emt 0:01:36]} Qc7 {[%emt 0:00:
00]} 8. O-O {[%emt 0:01:43]} Nf6 {[%emt 0:00:17]} 9. Re1 {[%emt 0:04:21]} cxd4
{[%emt 0:00:14]} 10. Nb3 {[%emt 0:06:34]} Bb4 {[%emt 0:00:08]} 11. Bd2 {
[%emt 0:03:08]} Bxd2 {[%emt 0:00:04]} 12. Qxd2 {[%emt 0:01:18]} O-O {[%emt 0:
00:00]} 13. Bd3 {[%emt 0:08:49]} Bd7 {[%emt 0:11:52]} 14. Nbxd4 {[%emt 0:01:02]
} Rfe8 {[%emt 0:05:49]} 15. c3 {[%emt 0:06:53]} Na5 {[%emt 0:13:24]} 16. Qc2 {
[%emt 0:03:49]} Nc4 {[%emt 0:05:12]} 17. h3 {[%emt 0:02:04]} g6 {[%emt 0:03:09]
} 18. Rad1 {[%emt 0:10:40]} Rac8 {[%emt 0:10:33]} 19. Qc1 {[%emt 0:10:21]} Kg7
{[%emt 0:01:26]} 20. Bf5 {[%emt 0:10:24]} h6 {[%emt 0:07:37]} 21. Bxd7 {
[%emt 0:01:45]} Nxd7 {[%emt 0:03:36]} 22. Rxe8 {[%emt 0:05:52]} Rxe8 {[%emt 0:
00:00]} 23. Re1 {[%emt 0:00:25]} Nde5 {[%emt 0:04:32]} 24. Nxe5 {[%emt 0:03:06]
} Rxe5 {[%emt 0:00:57]} 25. b3 {[%emt 0:02:31]} Rxe1+ {[%emt 0:08:58]} 26. Qxe1
{[%emt 0:00:05]} Ne5 {[%emt 0:00:11]} 27. Qe3 {[%emt 0:01:30]} Nc6 {[%emt 0:00:
00]} 28. Nb5 {[%emt 0:04:25]} Qd7 {[%emt 0:01:00]} 29. Kf1 {[%emt 0:03:18]} Qf5
{[%emt 0:02:51]} 30. Na3 {[%emt 0:02:20]} h5 {[%emt 0:02:50]} 31. Ke2 {[%emt 0:
00:00]} d4 {[%emt 0:03:59]} 32. cxd4 {[%emt 0:00:10]} Qa5 {[%emt 0:00:13]} 33.
Nc4 {[%emt 0:02:10]} Qxa2+ {[%emt 0:00:20]} 34. Nd2 {[%emt 0:00:32]} Qa6+ {
[%emt 0:01:34]} 35. Kf3 {[%emt 0:00:38]} Qa5 {[%emt 0:04:57]} 36. Kg3 {[%emt 0:
00:00]} Qd5 {[%emt 0:00:23]} 37. Nf3 {[%emt 0:00:26]} Qd6+ {[%emt 0:00:25]} 38.
Qf4 {[%emt 0:00:39]} h4+ {[%emt 0:00:43]} 39. Nxh4 {[%emt 0:00:05]} Qxf4+ {
[%emt 0:01:25]} 40. Kxf4 {[%emt 0:00:05]} Nxd4 {[%emt 0:00:35]} 41. b4 {
[%emt 0:04:56]} b5 {[%emt 0:05:52]} 42. Ke4 {[%emt 0:05:00]} Nc6 {[%emt 0:00:
00]} 43. Nf3 {[%emt 0:03:00]} Nxb4 {[%emt 0:04:52]} 44. Nd4 {[%emt 0:00:30]}
f5+ {[%emt 0:01:13]} 45. Kf4 {[%emt 0:00:34]} a6 {[%emt 0:00:58]} 46. g4 {
[%emt 0:00:40]} fxg4 {[%emt 0:02:07]} 47. hxg4 {[%emt 0:00:34]} Nd3+ {[%emt 0:
00:00]} 48. Ke3 {[%emt 0:00:43]} Ne5 {[%emt 0:00:58]} 49. g5 {[%emt 0:04:26]}
b4 {[%emt 0:07:18]} 50. f4 {[%emt 0:02:15]} Nc4+ {[%emt 0:00:18]} 51. Kd3 {
[%emt 0:00:20]} Nb6 {[%emt 0:00:35]} 52. f5 {[%emt 0:00:28]} gxf5 {[%emt 0:00:
00]} 53. Nxf5+ {[%emt 0:00:06]} Kg6 {[%emt 0:00:06]} 54. Ne7+ {[%emt 0:00:07]}
Kxg5 {[%emt 0:00:03]} 55. Nc6 {[%emt 0:00:06]} Nd5 {[%emt 0:01:32]} 56. Kc4 {
[%emt 0:00:08]} Kf6 {[%emt 0:02:25]} 57. Nxb4 {[%emt 0:00:08]} Nxb4 {[%emt 0:
00:00]} 1/2-1/2

[Event "44th Chess Olympiad Open 2022"]
[Site "Chennai"]
[Date "2022.08.08"]
[Round "10.42"]
[White "Kanep, Meelis"]
[Black "Pleasants, Allan J"]
[Result "1-0"]
[WhiteElo "2417"]
[BlackElo "2024"]
[Annotator "RC"]
[PlyCount "49"]
[EventDate "2022.??.??"]
[TimeControl "60"]

1. d4 {[%emt 0:00:05]} g6 {[%emt 0:00:05]} 2. e4 {[%emt 0:00:17]} Bg7 {[%emt 0:
00:00]} 3. Nc3 {[%emt 0:00:18]} d6 {[%emt 0:00:10]} 4. Bg5 {[%emt 0:00:36]} h6
{[%emt 0:00:38]} 5. Be3 {[%emt 0:00:23]} a6 {[%emt 0:01:38]} 6. a4 {[%emt 0:00:
00]} Nd7 {[%emt 0:04:21]} 7. Nf3 {[%emt 0:10:42]} b6 {[%emt 0:09:07]} 8. h3 {
[%emt 0:07:45]} Bb7 {[%emt 0:00:25]} 9. Qd2 {[%emt 0:03:45]} e6 {[%emt 0:04:21]
} 10. Bd3 {[%emt 0:07:44]} Ne7 {[%emt 0:04:53]} 11. Ne2 {[%emt 0:03:04]} Nf6 {
[%emt 0:12:57]} 12. Ng3 {[%emt 0:03:04]} d5 {[%emt 0:13:04]} 13. e5 {[%emt 0:
00:00]} Nd7 {[%emt 0:02:01]} 14. h4 {[%emt 0:07:39]} c5 {[%emt 0:04:25]} 15. c3
{[%emt 0:05:28]} Qc7 {[%emt 0:08:28]} 16. h5 {[%emt 0:02:34]} g5 {[%emt 0:00:
00]} 17. O-O {[%emt 0:02:44]} Nc6 {[%emt 0:03:02]} 18. Nh2 {[%emt 0:02:04]}
O-O-O {[%emt 0:05:26]} 19. f4 {[%emt 0:01:53]} f6 {[%emt 0:05:25]} 20. f5 {
[%emt 0:05:13]} fxe5 {[%emt 0:06:01]} 21. fxe6 {[%emt 0:00:25]} e4 {[%emt 0:00:
00]} 22. exd7+ {[%emt 0:00:35]} Rxd7 {[%emt 0:00:10]} 23. Be2 {[%emt 0:01:10]}
cxd4 {[%emt 0:03:06]} 24. Bxd4 {[%emt 0:08:30]} Nxd4 {[%emt 0:05:07]} 25. cxd4
{[%emt 0:00:09]} 1-0

[Event "44th Chess Olympiad Open 2022"]
[Site "Chennai"]
[Date "2022.08.08"]
[Round "10.42"]
[White "Toczek, Grzegorz"]
[Black "Kiik, Kalle"]
[Result "0-1"]
[WhiteElo "2287"]
[BlackElo "2365"]
[Annotator "RC"]
[PlyCount "74"]
[EventDate "2022.??.??"]
[TimeControl "60"]

1. d4 {[%emt 0:00:09]} c5 {[%emt 0:01:36]} 2. d5 {[%emt 0:00:22]} g6 {[%emt 0:
00:00]} 3. c4 {[%emt 0:02:19]} d6 {[%emt 0:00:11]} 4. g3 {[%emt 0:02:24]} b5 {
[%emt 0:08:03]} 5. cxb5 {[%emt 0:00:57]} a6 {[%emt 0:00:12]} 6. b6 {[%emt 0:00:
00]} Bg7 {[%emt 0:00:24]} 7. Bg2 {[%emt 0:00:24]} Qxb6 {[%emt 0:00:34]} 8. Nc3
{[%emt 0:00:20]} Nd7 {[%emt 0:01:03]} 9. Nf3 {[%emt 0:00:10]} a5 {[%emt 0:00:
00]} 10. O-O {[%emt 0:00:11]} Ngf6 {[%emt 0:00:35]} 11. Qc2 {[%emt 0:04:24]}
Ba6 {[%emt 0:01:12]} 12. Rb1 {[%emt 0:01:18]} O-O {[%emt 0:01:03]} 13. h3 {
[%emt 0:02:22]} Qc7 {[%emt 0:02:55]} 14. Re1 {[%emt 0:06:44]} Nb6 {[%emt 0:00:
00]} 15. e4 {[%emt 0:03:14]} Nfd7 {[%emt 0:00:23]} 16. Bf1 {[%emt 0:08:45]}
Bxf1 {[%emt 0:09:38]} 17. Rxf1 {[%emt 0:03:28]} a4 {[%emt 0:01:05]} 18. Rd1 {
[%emt 0:03:56]} Qb7 {[%emt 0:06:24]} 19. Bf4 {[%emt 0:00:26]} Qa6 {[%emt 0:00:
00]} 20. Rbc1 {[%emt 0:08:18]} Nc4 {[%emt 0:10:44]} 21. b3 {[%emt 0:08:01]}
axb3 {[%emt 0:01:00]} 22. axb3 {[%emt 0:00:05]} Na3 {[%emt 0:01:07]} 23. Qd3 {
[%emt 0:02:28]} Rfb8 {[%emt 0:03:35]} 24. Qxa6 {[%emt 0:01:04]} Rxa6 {[%emt 0:
00:00]} 25. Nd2 {[%emt 0:00:16]} h6 {[%emt 0:04:33]} 26. h4 {[%emt 0:00:44]}
Kh7 {[%emt 0:00:34]} 27. Kf1 {[%emt 0:02:37]} Bf6 {[%emt 0:08:27]} 28. Be3 {
[%emt 0:00:20]} Ne5 {[%emt 0:02:18]} 29. Ke2 {[%emt 0:02:13]} Ng4 {[%emt 0:00:
00]} 30. f4 {[%emt 0:02:20]} Nxe3 {[%emt 0:04:45]} 31. Kxe3 {[%emt 0:00:05]}
Rb4 {[%emt 0:02:22]} 32. e5 {[%emt 0:02:45]} dxe5 {[%emt 0:02:22]} 33. Nce4 {
[%emt 0:01:13]} exf4+ {[%emt 0:00:21]} 34. gxf4 {[%emt 0:00:04]} Bb2 {[%emt 0:
00:00]} 35. Nxc5 {[%emt 0:03:22]} Rab6 {[%emt 0:03:11]} 36. Kf3 {[%emt 0:01:22]
} Bxc1 {[%emt 0:01:16]} 37. Rxc1 {[%emt 0:00:04]} Rd4 {[%emt 0:00:42]} 0-1

[Event "44th Chess Olympiad Open 2022"]
[Site "Chennai"]
[Date "2022.08.08"]
[Round "10.42"]
[White "Bullen, Alex"]
[Black "Volodin, Aleksandr"]
[Result "1/2-1/2"]
[WhiteElo "2106"]
[BlackElo "2454"]
[Annotator "RC"]
[PlyCount "74"]
[EventDate "2022.??.??"]
[TimeControl "60"]

1. d4 {[%emt 0:00:03]} Nf6 {[%emt 0:00:11]} 2. Nf3 {[%emt 0:00:09]} d5 {
[%emt 0:00:13]} 3. c4 {[%emt 0:00:09]} e6 {[%emt 0:00:02]} 4. g3 {[%emt 0:00:
00]} Bb4+ {[%emt 0:00:04]} 5. Bd2 {[%emt 0:00:10]} a5 {[%emt 0:00:03]} 6. Bg2 {
[%emt 0:01:25]} O-O {[%emt 0:00:07]} 7. O-O {[%emt 0:00:19]} dxc4 {[%emt 0:00:
00]} 8. Qc2 {[%emt 0:04:17]} b5 {[%emt 0:02:37]} 9. a4 {[%emt 0:01:23]} c6 {
[%emt 0:18:04]} 10. axb5 {[%emt 0:03:46]} Bxd2 {[%emt 0:00:19]} 11. Nfxd2 {
[%emt 0:02:12]} Nd5 {[%emt 0:01:51]} 12. bxc6 {[%emt 0:06:17]} Nxc6 {[%emt 0:
00:00]} 13. Qxc4 {[%emt 0:01:54]} Nce7 {[%emt 0:17:49]} 14. b4 {[%emt 0:07:47]}
a4 {[%emt 0:02:09]} 15. b5 {[%emt 0:07:11]} Nf5 {[%emt 0:04:15]} 16. Qc5 {
[%emt 0:05:04]} Nd6 {[%emt 0:04:57]} 17. e4 {[%emt 0:03:41]} Nb6 {[%emt 0:00:
00]} 18. Nc3 {[%emt 0:05:07]} Bb7 {[%emt 0:00:13]} 19. Qb4 {[%emt 0:00:53]} Qd7
{[%emt 0:03:35]} 20. Rfb1 {[%emt 0:06:40]} f5 {[%emt 0:00:05]} 21. e5 {[%emt 0:
00:00]} Bxg2 {[%emt 0:00:07]} 22. Kxg2 {[%emt 0:01:24]} Nf7 {[%emt 0:05:15]}
23. Nxa4 {[%emt 0:03:37]} Qd5+ {[%emt 0:03:58]} 24. f3 {[%emt 0:05:35]} Rxa4 {
[%emt 0:02:20]} 25. Rxa4 {[%emt 0:00:08]} Nxa4 {[%emt 0:00:12]} 26. Qxa4 {
[%emt 0:00:10]} Nxe5 {[%emt 0:00:04]} 27. dxe5 {[%emt 0:00:30]} Qxd2+ {[%emt 0:
00:00]} 28. Kh1 {[%emt 0:02:48]} f4 {[%emt 0:08:45]} 29. g4 {[%emt 0:02:47]}
Qd5 {[%emt 0:13:14]} 30. Qb3 {[%emt 0:04:59]} Qxe5 {[%emt 0:00:02]} 31. b6 {
[%emt 0:00:12]} Rb8 {[%emt 0:00:06]} 32. b7 {[%emt 0:00:30]} Kf7 {[%emt 0:00:
00]} 33. Qb6 {[%emt 0:00:56]} Qd5 {[%emt 0:02:18]} 34. Kg2 {[%emt 0:04:52]} Qe5
{[%emt 0:01:14]} 35. Kh1 {[%emt 0:03:25]} Qd5 {[%emt 0:00:17]} 36. Kg2 {
[%emt 0:05:24]} Qe5 {[%emt 0:00:06]} 37. Kh1 {[%emt 0:00:20]} Qd5 {[%emt 0:00:
00]} 1/2-1/2

[Event "44th Chess Olympiad Open 2022"]
[Site "Chennai"]
[Date "2022.08.08"]
[Round "10.43"]
[White "Ibarra Chami, Luis Fernando"]
[Black "El Jawich, Amro"]
[Result "1-0"]
[WhiteElo "2452"]
[BlackElo "2314"]
[Annotator "RC"]
[PlyCount "81"]
[EventDate "2022.??.??"]
[TimeControl "60"]

1. e4 {[%emt 0:00:14]} c5 {[%emt 0:00:06]} 2. Nf3 {[%emt 0:00:30]} Nc6 {
[%emt 0:00:12]} 3. d4 {[%emt 0:01:18]} cxd4 {[%emt 0:00:08]} 4. Nxd4 {[%emt 0:
00:00]} Nf6 {[%emt 0:00:15]} 5. Nc3 {[%emt 0:00:42]} d6 {[%emt 0:00:08]} 6. Bg5
{[%emt 0:00:55]} e6 {[%emt 0:00:09]} 7. Qd3 {[%emt 0:01:35]} Nxd4 {[%emt 0:00:
00]} 8. Qxd4 {[%emt 0:00:12]} Be7 {[%emt 0:00:17]} 9. O-O-O {[%emt 0:02:41]}
O-O {[%emt 0:00:20]} 10. f4 {[%emt 0:02:38]} Qa5 {[%emt 0:00:48]} 11. Kb1 {
[%emt 0:08:22]} Rd8 {[%emt 0:03:23]} 12. Bd3 {[%emt 0:07:21]} h6 {[%emt 0:00:
00]} 13. Bh4 {[%emt 0:22:57]} e5 {[%emt 0:01:23]} 14. Qf2 {[%emt 0:09:11]} exf4
{[%emt 0:12:36]} 15. Nd5 {[%emt 0:03:31]} Nxd5 {[%emt 0:07:19]} 16. exd5 {
[%emt 0:00:05]} g5 {[%emt 0:14:55]} 17. Qe2 {[%emt 0:04:41]} Bf6 {[%emt 0:00:
00]} 18. Bf2 {[%emt 0:12:01]} Qb4 {[%emt 0:07:09]} 19. c3 {[%emt 0:00:05]} Bxc3
{[%emt 0:01:41]} 20. Be1 {[%emt 0:00:07]} f3 {[%emt 0:07:44]} 21. gxf3 {
[%emt 0:09:57]} Bxe1 {[%emt 0:00:15]} 22. Rhxe1 {[%emt 0:01:34]} Qf4 {[%emt 0:
00:00]} 23. h4 {[%emt 0:03:25]} Bf5 {[%emt 0:00:38]} 24. hxg5 {[%emt 0:00:32]}
hxg5 {[%emt 0:00:50]} 25. Bxf5 {[%emt 0:05:47]} Qxf5+ {[%emt 0:00:03]} 26. Ka1
{[%emt 0:00:05]} Kg7 {[%emt 0:09:44]} 27. Qd2 {[%emt 0:01:29]} Rh8 {[%emt 0:00:
00]} 28. Rg1 {[%emt 0:00:15]} Rh5 {[%emt 0:00:39]} 29. Rde1 {[%emt 0:01:10]}
Rah8 {[%emt 0:00:54]} 30. a3 {[%emt 0:00:40]} Kg6 {[%emt 0:05:07]} 31. f4 {
[%emt 0:00:07]} g4 {[%emt 0:01:09]} 32. Qe2 {[%emt 0:00:46]} Rh4 {[%emt 0:00:
00]} 33. Qe7 {[%emt 0:00:32]} Rh2 {[%emt 0:01:25]} 34. Qxd6+ {[%emt 0:00:15]}
f6 {[%emt 0:00:44]} 35. Qb4 {[%emt 0:01:22]} Rf2 {[%emt 0:01:14]} 36. Qxb7 {
[%emt 0:00:33]} Qxf4 {[%emt 0:01:40]} 37. d6 {[%emt 0:00:15]} g3 {[%emt 0:00:
00]} 38. Re4 {[%emt 0:00:35]} Rf1+ {[%emt 0:00:42]} 39. Ka2 {[%emt 0:00:04]}
Qf3 {[%emt 0:01:08]} 40. Rxf1 {[%emt 0:00:08]} Qxf1 {[%emt 0:00:04]} 41. Rg4+ {
[%emt 0:31:03]} 1-0

[Event "44th Chess Olympiad Open 2022"]
[Site "Chennai"]
[Date "2022.08.08"]
[Round "10.43"]
[White "Khairallah, Faisal"]
[Black "Diaz Rosas, Julio Cesar"]
[Result "1-0"]
[WhiteElo "2239"]
[BlackElo "2328"]
[Annotator "RC"]
[PlyCount "93"]
[EventDate "2022.??.??"]
[TimeControl "60"]

1. d4 {[%emt 0:00:04]} d5 {[%emt 0:00:53]} 2. c4 {[%emt 0:05:32]} e6 {[%emt 0:
00:00]} 3. Nc3 {[%emt 0:00:43]} Nf6 {[%emt 0:00:17]} 4. cxd5 {[%emt 0:01:01]}
exd5 {[%emt 0:00:18]} 5. Bg5 {[%emt 0:00:21]} Nbd7 {[%emt 0:02:13]} 6. e3 {
[%emt 0:00:21]} c6 {[%emt 0:00:24]} 7. Bd3 {[%emt 0:00:46]} Bd6 {[%emt 0:03:51]
} 8. Qc2 {[%emt 0:05:09]} Nf8 {[%emt 0:01:31]} 9. Bh4 {[%emt 0:03:17]} Ng6 {
[%emt 0:03:46]} 10. Bg3 {[%emt 0:01:16]} O-O {[%emt 0:01:04]} 11. Nge2 {
[%emt 0:03:48]} Re8 {[%emt 0:00:33]} 12. O-O {[%emt 0:05:33]} Nh5 {[%emt 0:00:
00]} 13. Bxd6 {[%emt 0:03:26]} Qxd6 {[%emt 0:00:04]} 14. Rab1 {[%emt 0:01:02]}
Qf6 {[%emt 0:16:33]} 15. b4 {[%emt 0:02:47]} a6 {[%emt 0:04:08]} 16. Na4 {
[%emt 0:05:23]} Qd8 {[%emt 0:05:55]} 17. Nc5 {[%emt 0:01:15]} Nf6 {[%emt 0:00:
00]} 18. a4 {[%emt 0:00:45]} Qc7 {[%emt 0:04:30]} 19. Ng3 {[%emt 0:06:47]} Ng4
{[%emt 0:01:23]} 20. Rfe1 {[%emt 0:03:27]} Re7 {[%emt 0:16:05]} 21. Nf1 {
[%emt 0:00:56]} Qd6 {[%emt 0:09:55]} 22. f3 {[%emt 0:03:44]} Nf6 {[%emt 0:00:
00]} 23. Qc3 {[%emt 0:00:46]} Rc7 {[%emt 0:02:24]} 24. e4 {[%emt 0:02:29]} dxe4
{[%emt 0:00:07]} 25. fxe4 {[%emt 0:00:17]} Qf4 {[%emt 0:02:02]} 26. Rb2 {
[%emt 0:04:40]} Bd7 {[%emt 0:01:11]} 27. Rf2 {[%emt 0:01:02]} Qh6 {[%emt 0:00:
00]} 28. Bc4 {[%emt 0:00:44]} Be8 {[%emt 0:03:29]} 29. Qg3 {[%emt 0:01:05]}
Rac8 {[%emt 0:01:20]} 30. Ne3 {[%emt 0:01:13]} Qh4 {[%emt 0:00:57]} 31. Qf3 {
[%emt 0:01:57]} Rd8 {[%emt 0:04:17]} 32. Nf5 {[%emt 0:03:01]} Qg5 {[%emt 0:00:
00]} 33. e5 {[%emt 0:01:55]} b5 {[%emt 0:03:34]} 34. Ba2 {[%emt 0:03:38]} Ng4 {
[%emt 0:00:55]} 35. Qg3 {[%emt 0:00:56]} Qh5 {[%emt 0:00:29]} 36. Rff1 {
[%emt 0:00:41]} Nh6 {[%emt 0:00:17]} 37. Nd6 {[%emt 0:01:35]} Re7 {[%emt 0:00:
00]} 38. a5 {[%emt 0:02:16]} Ra8 {[%emt 0:00:26]} 39. Re4 {[%emt 0:04:58]} Nf8
{[%emt 0:00:16]} 40. Ref4 {[%emt 0:02:00]} Ng6 {[%emt 0:00:08]} 41. Re4 {
[%emt 0:32:43]} Nf8 {[%emt 0:30:29]} 42. Bb3 {[%emt 0:02:09]} Kh8 {[%emt 0:00:
00]} 43. Rh4 {[%emt 0:02:24]} Qg6 {[%emt 0:00:19]} 44. Qf3 {[%emt 0:01:16]} Qg5
{[%emt 0:00:34]} 45. Qf4 {[%emt 0:02:56]} Qg6 {[%emt 0:00:00]} 46. Rh3 {
[%emt 0:00:00]} f5 {[%emt 0:00:00]} 47. exf6 {[%emt 0:00:00]} 1-0

[Event "44th Chess Olympiad Open 2022"]
[Site "Chennai"]
[Date "2022.08.08"]
[Round "10.43"]
[White "Montes Orozco, Miguel Angel"]
[Black "Khoder, Akram"]
[Result "1-0"]
[WhiteElo "2070"]
[BlackElo "2038"]
[Annotator "NA RC"]
[PlyCount "69"]
[EventDate "2022.??.??"]
[TimeControl "60"]

1. d4 {[%emt 0:00:10]} Nf6 {[%emt 0:00:06]} 2. c4 {[%emt 0:00:15]} g6 {[%emt 0:
00:00]} 3. Nc3 {[%emt 0:00:13]} d5 {[%emt 0:00:10]} 4. Nf3 {[%emt 0:00:08]} Bg7
{[%emt 0:00:05]} 5. Qb3 {[%emt 0:00:24]} dxc4 {[%emt 0:00:06]} 6. Qxc4 {
[%emt 0:00:06]} O-O {[%emt 0:00:04]} 7. e4 {[%emt 0:01:43]} a6 {[%emt 0:01:53]}
8. Qb3 {[%emt 0:00:18]} c5 {[%emt 0:13:09]} 9. dxc5 {[%emt 0:02:01]} Qa5 {
[%emt 0:13:52]} 10. Qb6 {[%emt 0:05:50]} Qxb6 {[%emt 0:00:29]} 11. cxb6 {
[%emt 0:00:07]} Nbd7 {[%emt 0:00:39]} 12. Bd3 {[%emt 0:12:46]} Nxb6 {[%emt 0:
00:00]} 13. Be3 {[%emt 0:02:16]} Rd8 {[%emt 0:01:54]} 14. Rd1 {[%emt 0:10:36]}
Nfd7 {[%emt 0:06:29]} 15. O-O {[%emt 0:00:31]} Bxc3 {[%emt 0:00:11]} 16. bxc3 {
[%emt 0:00:05]} Na4 {[%emt 0:00:05]} 17. Bc4 {[%emt 0:10:49]} Nb2 {[%emt 0:00:
00]} 18. Rd4 {[%emt 0:02:37]} Nxc4 {[%emt 0:01:42]} 19. Rxc4 {[%emt 0:00:02]}
Nf6 {[%emt 0:00:11]} 20. a4 {[%emt 0:08:02]} b5 {[%emt 0:02:33]} 21. axb5 {
[%emt 0:01:53]} axb5 {[%emt 0:01:13]} 22. Rb4 {[%emt 0:00:02]} Ra4 {[%emt 0:00:
00]} 23. Re1 {[%emt 0:04:27]} Ba6 {[%emt 0:02:31]} 24. Bc5 {[%emt 0:02:21]} Rd7
{[%emt 0:00:42]} 25. Ne5 {[%emt 0:05:30]} Rc7 {[%emt 0:00:10]} 26. Nd3 {
[%emt 0:02:07]} Ra3 {[%emt 0:04:14]} 27. Bd4 {[%emt 0:01:49]} Nd7 {[%emt 0:00:
00]} 28. h4 {[%emt 0:01:01]} h5 {[%emt 0:01:18]} 29. Reb1 {[%emt 0:02:53]} Ra2
{[%emt 0:04:03]} 30. R4b2 {[%emt 0:00:43]} Ra5 {[%emt 0:01:06]} 31. Nb4 {
[%emt 0:05:42]} Bb7 {[%emt 0:00:06]} 32. Nd5 {[%emt 0:00:05]} Bxd5 {[%emt 0:00:
00]} 33. exd5 {[%emt 0:00:03]} b4 {[%emt 0:00:28]} 34. Rxb4 {[%emt 0:00:06]}
Rxd5 {[%emt 0:00:04]} 35. Rb8+ {[%emt 0:00:09]} 1-0

[Event "44th Chess Olympiad Open 2022"]
[Site "Chennai"]
[Date "2022.08.08"]
[Round "10.43"]
[White "Kaloust, Giorgio"]
[Black "Hernandez Guerrero, Gilberto"]
[Result "0-1"]
[WhiteElo "1942"]
[BlackElo "2560"]
[Annotator "RC"]
[PlyCount "104"]
[EventDate "2022.??.??"]
[TimeControl "60"]

1. d4 {[%emt 0:00:03]} Nf6 {[%emt 0:00:09]} 2. c4 {[%emt 0:00:12]} g6 {[%emt 0:
00:00]} 3. Nf3 {[%emt 0:00:17]} Bg7 {[%emt 0:00:09]} 4. g3 {[%emt 0:00:22]} O-O
{[%emt 0:00:20]} 5. Bg2 {[%emt 0:00:05]} d6 {[%emt 0:00:24]} 6. O-O {[%emt 0:
00:00]} Nbd7 {[%emt 0:01:29]} 7. Nc3 {[%emt 0:00:26]} e5 {[%emt 0:00:10]} 8. e4
{[%emt 0:00:25]} c6 {[%emt 0:00:27]} 9. h3 {[%emt 0:02:33]} Qb6 {[%emt 0:01:16]
} 10. dxe5 {[%emt 0:03:42]} dxe5 {[%emt 0:00:50]} 11. Qe2 {[%emt 0:03:20]} Qb4
{[%emt 0:05:21]} 12. Be3 {[%emt 0:10:34]} Qe7 {[%emt 0:00:39]} 13. Nd2 {
[%emt 0:04:57]} Nc5 {[%emt 0:07:06]} 14. Rfd1 {[%emt 0:14:43]} Nfd7 {[%emt 0:
00:00]} 15. Nb3 {[%emt 0:05:40]} Ne6 {[%emt 0:02:57]} 16. Rd3 {[%emt 0:14:51]}
Ndc5 {[%emt 0:07:13]} 17. Nxc5 {[%emt 0:00:36]} Nxc5 {[%emt 0:00:07]} 18. Rd2 {
[%emt 0:04:03]} Re8 {[%emt 0:14:16]} 19. Rad1 {[%emt 0:05:06]} a5 {[%emt 0:00:
00]} 20. b3 {[%emt 0:01:11]} Rb8 {[%emt 0:05:52]} 21. Bxc5 {[%emt 0:06:23]}
Qxc5 {[%emt 0:00:10]} 22. Rd8 {[%emt 0:02:44]} Be6 {[%emt 0:00:50]} 23. Rxb8 {
[%emt 0:01:05]} Rxb8 {[%emt 0:00:06]} 24. Na4 {[%emt 0:00:44]} Qb4 {[%emt 0:00:
00]} 25. Qd2 {[%emt 0:07:15]} Bf8 {[%emt 0:00:44]} 26. Qxb4 {[%emt 0:01:45]}
Bxb4 {[%emt 0:00:15]} 27. c5 {[%emt 0:04:46]} Kf8 {[%emt 0:03:12]} 28. Kf1 {
[%emt 0:01:50]} Ke7 {[%emt 0:00:16]} 29. Ke2 {[%emt 0:00:33]} f5 {[%emt 0:00:
00]} 30. f3 {[%emt 0:01:04]} Rf8 {[%emt 0:05:49]} 31. Rf1 {[%emt 0:00:40]} h5 {
[%emt 0:00:36]} 32. Rd1 {[%emt 0:01:13]} Ba3 {[%emt 0:03:34]} 33. Rf1 {[%emt 0:
00:00]} Bb4 {[%emt 0:10:54]} 34. Rd1 {[%emt 0:00:25]} g5 {[%emt 0:00:34]} 35.
Rf1 {[%emt 0:00:55]} Rd8 {[%emt 0:05:57]} 36. Rd1 {[%emt 0:00:27]} Rg8 {
[%emt 0:01:06]} 37. Rh1 {[%emt 0:00:45]} Rd8 {[%emt 0:00:55]} 38. Rd1 {[%emt 0:
00:00]} Rxd1 {[%emt 0:00:12]} 39. Kxd1 {[%emt 0:00:05]} g4 {[%emt 0:00:06]} 40.
fxg4 {[%emt 0:01:24]} hxg4 {[%emt 0:00:49]} 41. hxg4 {[%emt 0:10:28]} fxe4 {
[%emt 0:00:47]} 42. Bxe4 {[%emt 0:00:03]} Bxg4+ {[%emt 0:00:35]} 43. Kc2 {
[%emt 0:00:44]} Ke6 {[%emt 0:04:22]} 44. Kd3 {[%emt 0:03:36]} Be1 {[%emt 0:00:
00]} 45. Nb6 {[%emt 0:05:24]} Bxg3 {[%emt 0:01:52]} 46. Kd2 {[%emt 0:03:38]}
Bf2 {[%emt 0:00:33]} 47. Na4 {[%emt 0:01:28]} Bd4 {[%emt 0:01:33]} 48. a3 {
[%emt 0:01:59]} Kf6 {[%emt 0:01:51]} 49. b4 {[%emt 0:01:02]} axb4 {[%emt 0:00:
00]} 50. axb4 {[%emt 0:00:02]} Kg5 {[%emt 0:00:11]} 51. Nb6 {[%emt 0:02:47]}
Kf4 {[%emt 0:00:13]} 52. Kd3 {[%emt 0:01:14]} Bh3 {[%emt 0:00:34]} 0-1

[Event "44th Chess Olympiad Open 2022"]
[Site "Chennai"]
[Date "2022.08.08"]
[Round "10.44"]
[White "Saraci, Korab"]
[Black "Altorky, Amer"]
[Result "0-1"]
[WhiteElo "2287"]
[BlackElo "2040"]
[Annotator "NA RC"]
[PlyCount "77"]
[EventDate "2022.??.??"]
[TimeControl "60"]

1. d4 {[%emt 0:00:03]} Nf6 {[%emt 0:01:22]} 2. c4 {[%emt 0:00:07]} g6 {[%emt 0:
00:00]} 3. Nc3 {[%emt 0:00:19]} Bg7 {[%emt 0:00:07]} 4. Nf3 {[%emt 0:00:57]} d6
{[%emt 0:00:20]} 5. e4 {[%emt 0:00:48]} O-O {[%emt 0:00:38]} 6. Bg5 {[%emt 0:
00:00]} Nbd7 {[%emt 0:03:06]} 7. Be2 {[%emt 0:04:23]} e5 {[%emt 0:05:05]} 8.
dxe5 {[%emt 0:01:26]} dxe5 {[%emt 0:00:21]} 9. O-O {[%emt 0:00:32]} h6 {
[%emt 0:01:09]} 10. Bh4 {[%emt 0:01:57]} g5 {[%emt 0:01:03]} 11. Bg3 {[%emt 0:
00:00]} Nh5 {[%emt 0:00:26]} 12. Bxe5 {[%emt 0:19:19]} Nxe5 {[%emt 0:10:35]}
13. Nxe5 {[%emt 0:03:49]} Qxd1 {[%emt 0:05:08]} 14. Raxd1 {[%emt 0:05:13]} Nf4
{[%emt 0:00:18]} 15. Nd3 {[%emt 0:00:06]} Bxc3 {[%emt 0:01:00]} 16. Nxf4 {
[%emt 0:00:05]} Bxb2 {[%emt 0:00:36]} 17. Nd5 {[%emt 0:01:08]} Be5 {[%emt 0:00:
00]} 18. Ne3 {[%emt 0:05:34]} Be6 {[%emt 0:12:10]} 19. Bg4 {[%emt 0:00:45]}
Rad8 {[%emt 0:09:39]} 20. g3 {[%emt 0:07:47]} c5 {[%emt 0:04:30]} 21. Bf5 {
[%emt 0:02:34]} Rd4 {[%emt 0:06:22]} 22. Rxd4 {[%emt 0:05:17]} cxd4 {[%emt 0:
00:00]} 23. Nd5 {[%emt 0:00:08]} Kg7 {[%emt 0:07:57]} 24. Rb1 {[%emt 0:13:46]}
b6 {[%emt 0:04:48]} 25. Rb5 {[%emt 0:01:02]} Bd6 {[%emt 0:05:50]} 26. a4 {
[%emt 0:02:45]} Rc8 {[%emt 0:03:22]} 27. a5 {[%emt 0:02:17]} bxa5 {[%emt 0:00:
00]} 28. Rxa5 {[%emt 0:06:42]} Bxf5 {[%emt 0:00:25]} 29. exf5 {[%emt 0:00:09]}
Rxc4 {[%emt 0:00:06]} 30. Ra6 {[%emt 0:01:01]} Bc5 {[%emt 0:01:35]} 31. f6+ {
[%emt 0:00:46]} Kh7 {[%emt 0:00:05]} 32. Kf1 {[%emt 0:02:19]} d3 {[%emt 0:00:
00]} 33. Ra1 {[%emt 0:03:21]} Rc2 {[%emt 0:00:32]} 34. Rd1 {[%emt 0:00:19]}
Rxf2+ {[%emt 0:00:35]} 35. Ke1 {[%emt 0:00:06]} Rf3 {[%emt 0:00:28]} 36. Kd2 {
[%emt 0:00:14]} Rf5 {[%emt 0:03:34]} 37. Nc3 {[%emt 0:00:52]} Bb4 {[%emt 0:00:
00]} 38. Kxd3 {[%emt 0:00:06]} Rf3+ {[%emt 0:00:09]} 39. Kd4 {[%emt 0:00:09]}
0-1